bitfinex-derivatives/quotes_BTCF0:USTF0_20241122
["timestamp","ask_amount","ask_price","bid_price","bid_amount"]
[1732241254370,0.0016581,98299.0,98298.0,0.46454879]
[1732241258372,0.0016581,98299.0,98298.0,0.49454624]
[1732241264680,0.0016581,98299.0,98298.0,0.35454624]
[1732241266081,0.0016581,98299.0,98298.0,0.30373124]
[1732241266082,0.0524731,98299.0,98298.0,0.30373124]
[1732241266283,0.0524731,98299.0,98298.0,0.43373124]
[1732241268985,0.05094634,98299.0,98298.0,0.43373124]
[1732241272793,0.08424634,98299.0,98298.0,0.35373124]
[1732241272995,0.11514634,98299.0,98298.0,0.26373124]
[1732241273694,0.11514634,98299.0,98298.0,0.36373124]
[1732241274483,0.23302634,98299.0,98298.0,0.24373124]
[1732241274894,0.23302634,98299.0,98298.0,0.33373124]
[1732241275684,0.08424634,98299.0,98298.0,0.38454724]
[1732241275889,0.16882634,98299.0,98298.0,0.47454724]
[1732241276299,0.11801134,98299.0,98298.0,0.47454724]
[1732241277793,0.16882634,98299.0,98298.0,0.47454724]
[1732241277991,0.11801134,98299.0,98298.0,0.47454724]
[1732241279696,0.00013134,98299.0,98298.0,0.47454724]
[1732241281287,0.05094634,98299.0,98298.0,0.42373124]
[1732241282201,0.00013134,98299.0,98298.0,0.42373124]
[1732241282700,0.00013134,98299.0,98298.0,0.47454724]
[1732241286495,0.00013134,98299.0,98298.0,0.42373124]
[1732241286695,0.05094634,98299.0,98298.0,0.42373124]
[1732241288596,0.05094634,98299.0,98298.0,0.22007744]
[1732241288788,0.05094634,98299.0,98298.0,0.24007744]
[1732241289194,0.05094634,98299.0,98298.0,0.30007744]
[1732241289802,0.05094634,98299.0,98298.0,0.66087744]
[1732241289995,0.05094634,98299.0,98298.0,0.30007744]
[1732241290191,0.05094634,98299.0,98298.0,0.66087744]
[1732241290392,0.16882634,98299.0,98298.0,0.66087744]
[1732241291997,0.16882634,98299.0,98298.0,0.30007744]
[1732241292706,0.16882634,98299.0,98298.0,0.16007744]
[1732241293010,0.52962634,98299.0,98298.0,0.13007999]
[1732241293193,0.52962634,98299.0,98298.0,0.11007999]
[1732241295301,0.52962634,98299.0,98298.0,7.999e-05]
[1732241296500,0.050752,98285.0,98284.0,0.0071]
[1732241296707,0.411552,98285.0,98284.0,0.09]
[1732241296895,0.411592,98285.0,98284.0,0.09]
[1732241297298,0.411592,98285.0,98284.0,0.08]
[1732241297498,0.050828,98276.0,98275.0,0.050827]
[1732241297703,0.175548,98276.0,98275.0,0.170827]
[1732241297900,0.175588,98276.0,98275.0,0.170827]
[1732241298508,0.175588,98276.0,98275.0,0.060827]
[1732241298819,0.175588,98276.0,98275.0,0.340827]
[1732241299810,0.12476,98276.0,98275.0,0.340827]
[1732241300199,4e-05,98276.0,98275.0,0.701627]
[1732241300595,0.3608,98285.0,98275.0,0.701627]
[1732241300801,0.3608,98285.0,98284.0,0.050823]
[1732241301003,0.3608,98285.0,98284.0,0.470863]
[1732241301201,0.12472,98292.0,98284.0,0.42004]
[1732241301501,0.12472,98292.0,98291.0,4e-05]
[1732241301697,0.12472,98292.0,98291.0,0.36004]
[1732241303106,0.12472,98292.0,98291.0,0.410859]
[1732241304709,0.175539,98292.0,98291.0,0.19004]
[1732241305106,0.175539,98292.0,98291.0,0.17004]
[1732241306515,0.174909,98292.0,98291.0,0.17004]
[1732241306714,0.174909,98292.0,98291.0,0.29004]
[1732241306906,0.174909,98292.0,98291.0,0.22004]
[1732241307707,0.174909,98292.0,98291.0,0.30004]
[1732241309311,0.174909,98292.0,98291.0,0.13004]
[1732241309508,0.174909,98292.0,98291.0,0.541659]
[1732241309712,0.174909,98292.0,98291.0,0.751659]
[1732241313603,0.174909,98292.0,98291.0,0.70084]
[1732241314215,0.174909,98292.0,98291.0,0.34004]
[1732241314514,0.174909,98292.0,98291.0,0.70084]
[1732241316318,0.174909,98292.0,98291.0,0.41084]
[1732241316524,0.174909,98292.0,98291.0,0.60084]
[1732241317224,0.174909,98292.0,98291.0,0.70084]
[1732241317806,0.174909,98292.0,98291.0,0.59084]
[1732241318110,0.089189,98294.0,98291.0,0.72084]
[1732241318316,0.06728,98295.0,98291.0,0.72084]
[1732241318518,0.06728,98295.0,98293.0,4e-05]
[1732241318724,0.032377,98296.0,98294.0,4e-05]
[1732241319017,0.11828,98299.0,98295.0,4e-05]
[1732241319317,0.066911,98299.0,98298.0,4e-05]
[1732241319621,0.066911,98299.0,98298.0,0.34004]
[1732241320511,0.11828,98300.0,98298.0,0.34004]
[1732241320806,0.050815,98299.0,98298.0,0.37013558]
[1732241321011,0.050815,98299.0,98298.0,0.10013558]
[1732241321211,0.118095,98300.0,98298.0,0.14013558]
[1732241321617,0.050815,98299.0,98298.0,0.14013558]
[1732241322008,0.050815,98299.0,98298.0,0.25013558]
[1732241322209,0.050815,98299.0,98298.0,0.10013558]
[1732241322517,0.050815,98299.0,98298.0,0.34013558]
[1732241323317,0.117725,98300.0,98298.0,0.34013558]
[1732241323715,0.168539,98300.0,98299.0,4e-05]
[1732241323911,0.168539,98300.0,98299.0,0.27004]
[1732241325108,0.168539,98300.0,98299.0,0.03004]
[1732241325422,0.168539,98300.0,98299.0,0.12004]
[1732241325605,0.066539,98300.0,98299.0,0.12004]
[1732241331311,0.07749367,98300.0,98299.0,0.12004]
[1732241331511,0.16868742,98300.0,98299.0,0.12004]
[1732241332927,0.15296242,98300.0,98299.0,0.12004]
[1732241333216,0.53492867,98300.0,98299.0,4e-05]
[1732241333922,0.050814,98297.0,98296.0,8.761e-05]
[1732241334228,0.18382946,98297.0,98296.0,8.761e-05]
[1732241334533,0.06198137,98297.0,98296.0,8.761e-05]
[1732241334911,0.20163591,98297.0,98296.0,8.761e-05]
[1732241335121,0.07978782,98297.0,98296.0,8.761e-05]
[1732241335613,0.09847395,98297.0,98296.0,8.761e-05]
[1732241336521,0.09847395,98297.0,98283.0,0.0173]
[1732241336522,0.050821,98284.0,98283.0,0.0173]
[1732241336710,0.17489897,98284.0,98283.0,0.01]
[1732241336912,0.17493897,98284.0,98283.0,0.01]
[1732241338219,0.18681919,98284.0,98283.0,0.01]
[1732241338428,0.19869936,98284.0,98283.0,0.01]
[1732241338628,0.050821,98283.0,98281.0,0.02933959]
[1732241338925,4e-05,98282.0,98281.0,0.26]
[1732241339337,0.01208163,98282.0,98281.0,0.26]
[1732241339626,4e-05,98282.0,98281.0,0.26]
[1732241340331,0.050822,98281.0,98279.0,0.08081565]
[1732241340625,4e-05,98280.0,98279.0,0.16999265]
[1732241340826,4e-05,98280.0,98279.0,0.30999265]
[1732241344224,0.36084,98280.0,98279.0,0.18999265]
[1732241344521,0.37254185,98280.0,98279.0,0.18999265]
[1732241344919,0.01174185,98280.0,98279.0,0.18999265]
[1732241346420,4e-05,98280.0,98279.0,0.18999265]
[1732241348135,0.011841,98280.0,98279.0,0.18999265]
[1732241351126,4e-05,98280.0,98279.0,0.28999265]
[1732241351832,4e-05,98280.0,98279.0,0.13999265]
[1732241352222,0.36084,98280.0,98279.0,0.13999265]
[1732241352422,4e-05,98280.0,98279.0,0.13999265]
[1732241352618,0.049962,98281.0,98279.0,0.11]
[1732241353037,0.049962,98281.0,98280.0,4.001e-05]
[1732241353337,0.049962,98281.0,98280.0,0.16004001]
[1732241354828,0.049962,98281.0,98280.0,0.05004001]
[1732241355627,0.049962,98281.0,98280.0,0.14004001]
[1732241357635,0.049962,98281.0,98280.0,0.18004001]
[1732241357835,0.06177623,98281.0,98280.0,0.01004001]
[1732241358231,0.07359045,98281.0,98280.0,0.01004001]
[1732241358427,0.19780777,98281.0,98280.0,0.02004001]
[1732241358627,0.08540777,98281.0,98280.0,0.30004001]
[1732241358825,0.19780777,98281.0,98280.0,0.30004001]
[1732241359224,0.08540777,98281.0,98280.0,0.35086301]
[1732241359640,0.19936777,98281.0,98280.0,0.35086301]
[1732241360943,0.18755045,98281.0,98280.0,0.35086301]
[1732241361134,0.1993487,98281.0,98280.0,0.35086301]
[1732241361730,0.18755045,98281.0,98280.0,0.02004001]
[1732241361932,0.19930374,98281.0,98280.0,0.13004001]
[1732241362129,0.19930374,98281.0,98280.0,0.25004001]
[1732241362536,0.19930374,98281.0,98280.0,0.30086301]
[1732241363536,0.19930374,98281.0,98280.0,0.25004001]
[1732241366337,0.19930374,98281.0,98280.0,0.16004001]
[1732241366540,0.51014174,98281.0,98270.0,0.35474163]
[1732241366734,0.050826,98277.0,98276.0,0.050825]
[1732241366939,0.06265236,98277.0,98276.0,0.260825]
[1732241367638,0.06265236,98277.0,98276.0,0.090825]
[1732241367836,0.06265236,98277.0,98276.0,0.330825]
[1732241368037,0.01182636,98277.0,98276.0,0.330825]
[1732241368251,0.44756475,98281.0,98280.0,0.050823]
[1732241368447,0.45939214,98281.0,98280.0,0.470823]
[1732241368748,0.45883213,98281.0,98280.0,0.470863]
[1732241368949,0.44700474,98281.0,98280.0,0.470863]
[1732241369339,0.44700474,98281.0,98280.0,0.42004]
[1732241369743,0.45881954,98281.0,98280.0,0.42004]
[1732241370046,0.43519109,98281.0,98280.0,0.42004]
[1732241371343,0.11495171,98281.0,98280.0,0.831663]
[1732241371544,0.02356809,98281.0,98280.0,1.136903]
[1732241372148,0.02356809,98281.0,98280.0,1.16716946]
[1732241381865,0.02356809,98281.0,98280.0,0.86192946]
[1732241383868,0.02356809,98281.0,98280.0,1.16716946]
[1732241384066,0.02356809,98281.0,98280.0,0.86192946]
[1732241385874,0.02356809,98281.0,98280.0,0.50112946]
[1732241386075,0.07439109,98281.0,98280.0,0.20004]
[1732241386266,0.13819109,98281.0,98280.0,0.20004]
[1732241387372,0.13819109,98281.0,98280.0,4e-05]
[1732241387570,0.15029931,98281.0,98280.0,4e-05]
[1732241387875,0.13819109,98281.0,98280.0,4e-05]
[1732241388668,0.13819109,98281.0,98280.0,0.01004]
[1732241388968,0.15037731,98281.0,98280.0,0.01004]
[1732241389368,0.15037734,98281.0,98280.0,0.01004]
[1732241390267,0.12680925,98281.0,98280.0,0.01004]
[1732241390669,0.12680925,98281.0,98280.0,4e-05]
[1732241391171,0.12655701,98281.0,98280.0,4e-05]
[1732241391876,0.114623,98281.0,98280.0,4e-05]
[1732241392277,0.12647491,98281.0,98280.0,4e-05]
[1732241393377,0.232703,98281.0,98280.0,4e-05]
[1732241393675,0.24457622,98281.0,98280.0,4e-05]
[1732241395874,0.54981622,98281.0,98280.0,4e-05]
[1732241396874,0.56167514,98281.0,98280.0,4e-05]
[1732241397773,0.65276934,98281.0,98280.0,4e-05]
[1732241398170,0.56167514,98281.0,98280.0,4e-05]
[1732241400180,0.65276848,98281.0,98280.0,4e-05]
[1732241400366,0.54981622,98281.0,98280.0,4e-05]
[1732241400572,0.64087147,98281.0,98280.0,4e-05]
[1732241400772,0.56159738,98281.0,98280.0,4e-05]
[1732241400973,0.57337922,98281.0,98280.0,4e-05]
[1732241401365,0.66444815,98281.0,98280.0,4e-05]
[1732241402974,0.66440755,98281.0,98280.0,4e-05]
[1732241403176,2.16440755,98281.0,98280.0,4e-05]
[1732241403382,2.17614271,98281.0,98280.0,4e-05]
[1732241403972,0.050831,98266.0,98264.0,0.0071]
[1732241404283,0.050834,98261.0,98260.0,0.00152639]
[1732241404782,0.050874,98261.0,98260.0,0.00152639]
[1732241406473,0.168994,98261.0,98260.0,0.00152639]
[1732241410281,0.050838,98252.0,98251.0,0.02941932]
[1732241410579,0.411638,98252.0,98251.0,0.01]
[1732241411177,0.411678,98252.0,98251.0,0.01]
[1732241414176,0.42370277,98252.0,98251.0,0.01]
[1732241416388,0.050843,98243.0,98242.0,0.0301]
[1732241416579,0.050847,98236.0,98235.0,0.0301]
[1732241416775,0.90124301,98243.0,98231.0,0.001527]
[1732241416981,0.90124301,98243.0,98231.0,0.021527]
[1732241416982,0.411649,98232.0,98231.0,0.021527]
[1732241417285,0.411689,98232.0,98231.0,0.05940891]
[1732241417692,0.411689,98232.0,98222.0,0.0071]
[1732241417693,0.050854,98223.0,98222.0,0.0071]
[1732241417888,0.050855,98220.0,98219.0,0.0318]
[1732241418091,0.050855,98220.0,98219.0,0.0518]
[1732241418288,0.050895,98220.0,98219.0,0.0518]
[1732241419379,0.050895,98220.0,98219.0,0.1418]
[1732241419687,0.179095,98220.0,98219.0,0.3418]
[1732241421295,0.179095,98220.0,98219.0,0.0518]
[1732241421783,0.179095,98220.0,98219.0,0.0718]
[1732241422091,0.179095,98220.0,98219.0,0.0518]
[1732241426888,0.179095,98220.0,98219.0,0.1318]
[1732241428294,0.179095,98220.0,98219.0,0.2718]
[1732241428794,0.539895,98220.0,98219.0,0.2718]
[1732241429392,0.539895,98220.0,98219.0,0.1118]
[1732241429592,0.539895,98220.0,98219.0,0.3618]
[1732241431899,0.179095,98220.0,98219.0,0.3618]
[1732241433103,0.179095,98220.0,98219.0,0.0518]
[1732241433403,0.179095,98220.0,98219.0,0.1618]
[1732241433704,0.19082758,98220.0,98219.0,0.1618]
[1732241434499,0.19082758,98220.0,98219.0,0.13]
[1732241435594,0.21069023,98220.0,98219.0,0.13]
[1732241436097,0.21069023,98220.0,98219.0,0.02]
[1732241436488,0.15983523,98220.0,98215.0,0.03754287]
[1732241436688,0.050857,98216.0,98215.0,0.03754287]
[1732241437001,0.050897,98216.0,98215.0,0.03754287]
[1732241437204,4e-05,98216.0,98204.0,0.050863]
[1732241437404,0.050863,98206.0,98204.0,0.230863]
[1732241437695,0.12192,98205.0,98204.0,0.26872517]
[1732241438002,0.12192,98205.0,98204.0,0.21786217]
[1732241438191,0.12196,98205.0,98204.0,0.21786217]
[1732241441202,0.12196,98205.0,98204.0,0.35786217]
[1732241441698,0.12196,98205.0,98204.0,0.22786217]
[1732241443799,0.12196,98205.0,98204.0,0.05786217]
[1732241444005,0.12196,98205.0,98204.0,0.33786217]
[1732241448599,0.12151027,98205.0,98204.0,0.33786217]
[1732241453021,4e-05,98205.0,98204.0,0.33786217]
[1732241453318,0.3608,98218.0,98217.0,0.050857]
[1732241453518,0.47652,98218.0,98217.0,0.460857]
[1732241453719,0.050851,98228.0,98217.0,0.41]
[1732241454019,0.050851,98228.0,98225.0,0.050893]
[1732241454218,0.11724759,98226.0,98225.0,0.410893]
[1732241454410,0.00152759,98226.0,98225.0,0.410893]
[1732241455003,0.00152759,98226.0,98225.0,0.44938428]
[1732241455518,0.00152759,98226.0,98225.0,0.75478428]
[1732241457818,0.00152759,98226.0,98225.0,0.64478428]
[1732241458921,0.00152759,98226.0,98225.0,0.33938428]
[1732241460223,0.00152759,98226.0,98225.0,0.42938428]
[1732241461620,0.00152759,98226.0,98225.0,0.32938428]
[1732241461921,0.00152759,98226.0,98225.0,0.41938428]
[1732241462306,0.00152759,98226.0,98225.0,0.15938428]
[1732241462507,0.01447244,98226.0,98225.0,0.17853128]
[1732241462717,0.00152759,98226.0,98225.0,0.30853128]
[1732241462920,0.0144084,98226.0,98225.0,0.30853128]
[1732241463116,0.00152759,98226.0,98225.0,0.30853128]
[1732241463620,0.01440806,98226.0,98225.0,0.30853128]
[1732241464117,0.01422327,98226.0,98225.0,0.30853128]
[1732241464315,0.00152759,98226.0,98225.0,0.40853128]
[1732241468114,0.00152759,98226.0,98225.0,0.27853128]
[1732241469824,0.00152759,98226.0,98225.0,0.36853128]
[1732241470426,0.11004,98239.0,98237.0,0.050846]
[1732241470622,0.11004,98239.0,98237.0,0.470846]
[1732241470924,0.11004,98239.0,98237.0,0.470886]
[1732241472629,0.0318,98244.0,98237.0,0.470886]
[1732241473025,0.11004,98248.0,98237.0,0.470886]
[1732241474616,0.00012826,98250.0,98248.0,0.050841]
[1732241474827,0.00012826,98250.0,98248.0,0.520841]
[1732241475129,0.00012826,98250.0,98249.0,0.3054]
[1732241475320,0.00012826,98250.0,98249.0,0.7961]
[1732241477332,0.00012826,98250.0,98249.0,0.84694]
[1732241477723,0.3608,98264.0,98249.0,0.7961]
[1732241477919,0.3608,98264.0,98262.0,0.050833]
[1732241478127,0.3608,98264.0,98262.0,0.270873]
[1732241478535,0.3608,98264.0,98262.0,0.400873]
[1732241478722,0.3608,98264.0,98262.0,0.40099492]
[1732241479126,0.3608,98264.0,98262.0,0.10099492]
[1732241479324,0.3608,98264.0,98262.0,0.23099492]
[1732241479730,0.11,98267.0,98262.0,0.23099492]
[1732241480326,0.050832,98265.0,98262.0,0.23099492]
[1732241480533,0.050832,98265.0,98262.0,0.10099492]
[1732241480733,0.0316,98264.0,98262.0,0.13099492]
[1732241480929,0.0316,98264.0,98262.0,0.13879551]
[1732241481138,0.0316,98264.0,98262.0,0.41879551]
[1732241481328,0.0316,98264.0,98262.0,0.13879551]
[1732241481528,0.0316,98264.0,98262.0,0.23879551]
[1732241482341,0.0316,98264.0,98262.0,0.31879551]
[1732241482938,0.0316,98264.0,98262.0,0.09796251]
[1732241483129,0.39392693,98263.0,98262.0,0.09796251]
[1732241483926,0.44475993,98263.0,98262.0,0.09796251]
[1732241484340,0.44475993,98263.0,98262.0,0.06016192]
[1732241484837,0.45750114,98263.0,98262.0,0.06016192]
[1732241485431,0.48950114,98263.0,98262.0,0.06016192]
[1732241486139,0.48950114,98263.0,98262.0,0.27016192]
[1732241486442,0.48950114,98263.0,98262.0,0.09016192]
[1732241487536,0.48950114,98263.0,98262.0,0.23016192]
[1732241487740,0.48950114,98263.0,98262.0,0.31016192]
[1732241487935,0.43866814,98263.0,98262.0,0.31016192]
[1732241488240,0.43866814,98263.0,98262.0,0.36099492]
[1732241488241,0.36232693,98263.0,98262.0,0.36099492]
[1732241490334,0.3608,98263.0,98262.0,0.36099492]
[1732241490841,0.0634,98275.0,98262.0,0.31016192]
[1732241491033,0.01268247,98274.0,98273.0,0.050827]
[1732241491229,0.3608,98279.0,98278.0,0.050825]
[1732241491446,0.3608,98279.0,98278.0,0.500825]
[1732241491447,0.37348015,98279.0,98278.0,0.500825]
[1732241491948,0.37348015,98279.0,98278.0,0.500865]
[1732241492248,0.37348887,98279.0,98278.0,0.500865]
[1732241492447,0.3608,98279.0,98278.0,0.500865]
[1732241492739,0.37348709,98279.0,98278.0,0.500865]
[1732241493140,0.3608,98279.0,98278.0,0.500865]
[1732241493733,0.3608,98279.0,98278.0,0.360865]
[1732241493936,0.4243178,98279.0,98278.0,0.31004]
[1732241494144,0.4243178,98279.0,98278.0,0.32004]
[1732241494546,0.4243178,98279.0,98278.0,0.16004]
[1732241494734,0.4243178,98279.0,98278.0,0.19004]
[1732241495244,0.4243178,98279.0,98278.0,0.16004]
[1732241495442,0.4243178,98279.0,98278.0,0.41004]
[1732241496132,0.44473179,98279.0,98278.0,0.41004]
[1732241496547,0.4447318,98279.0,98278.0,0.16004]
[1732241496749,0.4243178,98279.0,98278.0,0.17004]
[1732241497044,0.4243178,98279.0,98278.0,0.40004]
[1732241497244,0.4243178,98279.0,98278.0,0.16004]
[1732241497438,0.54575038,98279.0,98278.0,0.28004]
[1732241497646,0.4243178,98279.0,98278.0,0.28004]
[1732241497846,0.4243178,98279.0,98278.0,0.16004]
[1732241498142,0.4243178,98279.0,98278.0,0.17004]
[1732241498348,0.44466741,98279.0,98278.0,0.17004]
[1732241498548,0.56609999,98279.0,98278.0,0.17004]
[1732241498747,0.56609999,98279.0,98278.0,0.16004]
[1732241498947,0.56609999,98279.0,98278.0,0.40004]
[1732241499341,0.411624,98279.0,98278.0,0.40004]
[1732241499536,0.44470293,98279.0,98278.0,0.40004]
[1732241500444,0.411624,98279.0,98278.0,0.40004]
[1732241500645,0.44460303,98279.0,98278.0,0.40004]
[1732241501150,0.44460303,98279.0,98278.0,0.19004]
[1732241501446,0.411624,98279.0,98278.0,0.30004]
[1732241501650,0.4446582,98279.0,98278.0,0.30004]
[1732241502246,0.4446582,98279.0,98278.0,0.19004]
[1732241502654,0.050833,98263.0,98261.0,0.050833]
[1732241502855,0.42433846,98263.0,98262.0,0.41012192]
[1732241503046,0.42437847,98263.0,98262.0,0.41012192]
[1732241503243,0.42437847,98263.0,98262.0,0.46095492]
[1732241503552,0.4243035,98263.0,98262.0,0.46095492]
[1732241503944,0.4243035,98263.0,98262.0,0.22095492]
[1732241504146,0.4243035,98263.0,98262.0,0.35095492]
[1732241504443,0.4243035,98263.0,98262.0,0.54827]
[1732241504851,0.0635035,98263.0,98262.0,0.54827]
[1732241505941,0.0635035,98263.0,98262.0,0.46827]
[1732241506543,0.05087301,98263.0,98262.0,0.46827]
[1732241506858,0.06344864,98263.0,98262.0,0.46827]
[1732241507052,0.05087301,98263.0,98262.0,0.46827]
[1732241507448,0.1421504,98263.0,98262.0,0.46827]
[1732241507659,0.15473913,98263.0,98262.0,0.46827]
[1732241508259,0.06346174,98263.0,98262.0,0.46827]
[1732241509456,0.0634153,98263.0,98262.0,0.46827]
[1732241509758,0.15469269,98263.0,98262.0,0.46827]
[1732241509953,0.15469269,98263.0,98262.0,0.37827]
[1732241510155,0.1421504,98263.0,98262.0,0.37827]
[1732241510362,0.06336221,98263.0,98262.0,0.49827]
[1732241512869,0.05087301,98263.0,98262.0,0.49827]
[1732241521081,0.05087301,98263.0,98262.0,0.447437]
[1732241521268,0.05087301,98263.0,98262.0,0.18012192]
[1732241521472,0.14217181,98263.0,98262.0,0.18012192]
[1732241521675,0.05087301,98263.0,98262.0,0.18012192]
[1732241521875,0.06316334,98263.0,98262.0,0.18012192]
[1732241522077,0.15446214,98263.0,98262.0,0.18012192]
[1732241522381,0.06316334,98263.0,98262.0,0.18012192]
[1732241522771,0.05087301,98263.0,98262.0,0.00012192]
[1732241523084,0.050834,98259.0,98258.0,0.00152648]
[1732241523272,0.06305988,98259.0,98258.0,0.00152648]
[1732241523472,0.06309989,98259.0,98258.0,0.00152648]
[1732241525184,0.36841989,98259.0,98258.0,0.00152648]
[1732241525485,0.050839,98249.0,98248.0,0.0071]
[1732241525677,0.411639,98249.0,98248.0,0.04]
[1732241525878,0.3608,98249.0,98248.0,0.39895719]
[1732241526281,0.14213877,98257.0,98256.0,0.050836]
[1732241526588,0.01197793,98257.0,98256.0,0.440876]
[1732241526772,0.10608,98261.0,98256.0,0.440876]
[1732241526977,0.452087,98265.0,98261.0,0.050833]
[1732241526978,0.10608,98262.0,98261.0,0.050833]
[1732241527179,0.10608,98262.0,98261.0,0.470833]
[1732241527476,0.10608,98262.0,98261.0,0.470873]
[1732241528283,0.156913,98262.0,98261.0,0.240873]
[1732241528582,0.050833,98262.0,98261.0,0.240873]
[1732241529176,0.050833,98262.0,98261.0,0.19004]
[1732241529671,0.0629244,98262.0,98261.0,4e-05]
[1732241529871,0.050836,98256.0,98255.0,0.03690796]
[1732241530072,0.45954724,98262.0,98251.0,0.050838]
[1732241530073,0.050838,98252.0,98251.0,0.050838]
[1732241530375,0.050838,98252.0,98251.0,0.350838]
[1732241530575,0.050838,98252.0,98251.0,0.3]
[1732241530780,0.050838,98252.0,98251.0,0.350838]
[1732241531174,0.050838,98252.0,98251.0,0.3]
[1732241531381,0.050838,98252.0,98251.0,0.350838]
[1732241532383,0.06290538,98252.0,98251.0,0.350838]
[1732241532681,0.06289383,98252.0,98251.0,0.350838]
[1732241533588,0.06289383,98252.0,98251.0,0.22]
[1732241534279,0.06288949,98252.0,98251.0,0.22]
[1732241536080,0.06288949,98252.0,98251.0,0.13]
[1732241536279,0.06288949,98252.0,98251.0,0.26]
[1732241537292,0.050838,98252.0,98251.0,0.26]
[1732241538181,0.06331994,98252.0,98251.0,0.26]
[1732241538486,0.050838,98252.0,98251.0,0.26]
[1732241539488,0.06337934,98252.0,98251.0,0.26]
[1732241540277,0.06337934,98252.0,98251.0,0.15]
[1732241541587,0.06337934,98252.0,98251.0,0.06]
[1732241542787,0.06337934,98252.0,98251.0,0.3]
[1732241543501,0.050838,98252.0,98251.0,0.3]
[1732241543794,0.06352562,98252.0,98251.0,0.17]
[1732241544094,0.06352562,98252.0,98251.0,0.08]
[1732241545295,0.06352562,98252.0,98251.0,0.25]
[1732241545492,0.01268762,98252.0,98251.0,0.25]
[1732241545693,0.00242279,98252.0,98251.0,0.6108]
[1732241545893,0.050833,98262.0,98251.0,0.97902]
[1732241546088,0.050833,98262.0,98261.0,0.050833]
[1732241546289,0.050833,98262.0,98261.0,0.380873]
[1732241547493,0.050833,98262.0,98261.0,0.33004]
[1732241549200,0.050833,98262.0,98261.0,0.07004]
[1732241549498,0.050833,98262.0,98261.0,0.10004]
[1732241549700,0.050833,98262.0,98261.0,0.03004]
[1732241549900,0.37668301,98262.0,98261.0,4e-05]
[1732241550096,0.050842,98245.0,98244.0,0.057942]
[1732241550298,0.050842,98245.0,98244.0,0.330842]
[1732241550299,0.411642,98245.0,98244.0,0.330842]
[1732241550490,0.41176201,98245.0,98244.0,0.330842]
[1732241550893,0.41176201,98245.0,98244.0,0.36864897]
[1732241551103,0.05096201,98245.0,98244.0,0.36864897]
[1732241553894,0.05096201,98245.0,98244.0,0.31780697]
[1732241554213,0.05096201,98245.0,98244.0,0.22780697]
[1732241554509,0.05096201,98245.0,98244.0,0.19]
[1732241555403,0.07144459,98245.0,98244.0,0.16]
[1732241556199,0.050843,98243.0,98242.0,0.03697806]
[1732241556395,0.13904,98243.0,98233.0,0.050848]
[1732241556714,0.41176701,98234.0,98233.0,0.320848]
[1732241557004,0.41176701,98234.0,98233.0,0.190848]
[1732241557205,0.41176701,98234.0,98233.0,0.100848]
[1732241557512,0.41176701,98234.0,98233.0,0.330848]
[1732241557812,0.42472898,98234.0,98233.0,0.330848]
[1732241558311,0.42472898,98234.0,98233.0,0.27764577]
[1732241559011,0.42472898,98234.0,98233.0,0.14764577]
[1732241559600,0.42472898,98234.0,98233.0,0.41764577]
[1732241560309,0.42472898,98234.0,98233.0,0.36679777]
[1732241560711,0.42472898,98234.0,98233.0,0.27679777]
[1732241560910,0.42484229,98234.0,98233.0,0.27679777]
[1732241561302,0.06404229,98234.0,98233.0,0.27679777]
[1732241561503,0.42484229,98234.0,98233.0,0.27679777]
[1732241561811,0.42484229,98234.0,98233.0,0.24]
[1732241562513,0.42484229,98234.0,98233.0,0.09]
[1732241562705,0.4457585,98234.0,98233.0,0.09]
[1732241563813,0.4457585,98234.0,98233.0,0.05]
[1732241564308,0.4456967,98234.0,98233.0,0.05]
[1732241564513,0.4456967,98234.0,98228.0,0.00152689]
[1732241564514,0.05085,98229.0,98228.0,0.00152689]
[1732241564700,0.06389988,98229.0,98228.0,0.02152689]
[1732241565006,0.06401989,98229.0,98228.0,0.18152689]
[1732241566718,0.42481989,98229.0,98228.0,0.18152689]
[1732241567713,0.42481185,98229.0,98228.0,0.18152689]
[1732241570006,0.42481185,98229.0,98228.0,0.01]
[1732241570206,0.42481185,98229.0,98228.0,0.24]
[1732241573920,0.42391185,98229.0,98228.0,0.24]
[1732241574118,0.06311185,98229.0,98228.0,0.24]
[1732241574314,0.42391185,98229.0,98228.0,0.24]
[1732241574621,0.42375059,98229.0,98228.0,0.24]
[1732241574823,0.42374357,98229.0,98228.0,0.24]
[1732241576019,0.41087001,98229.0,98228.0,0.24]
[1732241576418,0.42375066,98229.0,98228.0,0.24]
[1732241577118,0.41087001,98229.0,98228.0,0.24]
[1732241577513,0.42376462,98229.0,98228.0,0.24]
[1732241578625,0.42376462,98229.0,98228.0,0.13]
[1732241579820,0.42376462,98229.0,98228.0,0.01]
[1732241580121,0.42376462,98229.0,98228.0,0.27]
[1732241583615,0.00012001,98229.0,98228.0,0.27]
[1732241583817,0.03388484,98229.0,98228.0,0.626251]
[1732241584022,0.19614,98260.0,98228.0,0.9362]
[1732241584221,0.19614,98260.0,98253.0,0.050838]
[1732241584419,0.36232706,98254.0,98253.0,0.130878]
[1732241584624,0.00152706,98254.0,98253.0,0.310878]
[1732241584922,0.36232706,98254.0,98253.0,0.26004]
[1732241585225,0.54600406,98254.0,98253.0,0.26004]
[1732241586824,0.54600406,98254.0,98253.0,0.310878]
[1732241588523,0.54600406,98254.0,98253.0,0.400878]
[1732241590526,0.41316406,98254.0,98253.0,0.400878]
[1732241592820,0.41316406,98254.0,98253.0,0.290878]
[1732241593031,0.71848406,98254.0,98253.0,4e-05]
[1732241593336,0.050845,98240.0,98239.0,0.0071]
[1732241593519,0.538325,98240.0,98239.0,0.01]
[1732241593828,0.538365,98240.0,98239.0,0.1]
[1732241594531,0.538365,98240.0,98239.0,0.2]
[1732241595937,0.55114877,98240.0,98239.0,0.2]
[1732241596324,0.91194877,98240.0,98239.0,0.2]
[1732241597431,0.91194404,98240.0,98239.0,0.23689584]
[1732241597825,0.899165,98240.0,98239.0,0.23689584]
[1732241598032,0.9119518,98240.0,98239.0,0.23689584]
[1732241599535,0.5511518,98240.0,98239.0,0.23689584]
[1732241599838,0.4244718,98240.0,98239.0,0.31689584]
[1732241600336,0.3736268,98240.0,98239.0,0.36774184]